[Event "SixDays Budapest March IM C 2025"]
[Site "Budapest"]
[Date "2025.03.25"]
[Round "3.5"]
[White "Steiners, Emils"]
[Black "Sanjay Narayanan P S"]
[Result "1/2-1/2"]
[Annotator "TA"]
[ECO "D32"]
[WhiteElo "2165"]
[BlackElo "2169"]
[PlyCount "115"]
[EventDate "2025.03.23"]
[EventCountry "HUN"]
[SourceTitle "playchess.com"]
[Source "ChessBase"]
[SourceQuality "1"]
[TimeControl "5400+30"]

{[%evp 13,115,39,39,39,47,39,48,15,39,35,38,37,28,45,31,42,42,25,44,33,107,24,31,17,18,10,55,0,45,50,52,50,30,-1,100,15,15,15,15,10,10,0,7,4,3,0,2,2,66,45,85,11,49,0,0,0,0,3,16,0,0,0,0,0,0,-124,-124,-571,41,-5575,41,41,41,41,41,23,41,0,0,0,0,0,0,0,0,0,0,0,0,0,0,0,0,0,0,0,0,0,0,0,0,0,0,0]} 1. d4 {[%emt 0:00:02]} d5 {[%emt 0:06:32]} 2. c4 {[%emt 0:00:08]} e6 {[%emt 0:00:13]} 3. Nc3 {[%emt 0:00:05]} c5 {[%emt 0:00:09]} 4. cxd5 {[%emt 0:00:09]} exd5 {[%emt 0:00:07]} 5. Nf3 {[%emt 0:00:05]} Nf6 {[%emt 0:00:36]} 6. Bg5 {[%emt 0:07:09]} Be7 {[%emt 0:01:22]} 7. dxc5 {[%emt 0:07:28]} Be6 {[%emt 0:02:08]} 8. e3 {[%emt 0:02:15] D32: Tarrasch Defence: Sidelines and lines without g3.} Nc6 {[%emt 0:06:20]} 9. Bxf6 {[%emt 0:10:59]} Bxf6 {[%emt 0:00:47]} 10. Nd4 $146 {[%emt 0:00:38] White is slightly better.} ({Predecessor:} 10. Bb5 O-O 11. O-O Bxc3 12. bxc3 Qa5 13. Bxc6 bxc6 14. Qd4 h6 15. Ne5 Qc7 16. f4 {1-0 Montano Vicente,G (1973)-White,J (2235) Titled Tuesday intern op 03rd Sep Late blitz 2024 (7)}) 10... Qe7 {[%emt 0:11:42]} 11. Bb5 {[%emt 0:11:13]} Qxc5 {[%emt 0:03:26]} 12. O-O {[%emt 0:01:00]} O-O {[%emt 0:05:32][%cal Rc6d4]} 13. Na4 {[%emt 0:02:33] A dynamic duo of knights.} Qd6 {[%emt 0:08:03]} 14. Bxc6 {[%emt 0:01:58]} bxc6 {[%emt 0:07:38]} 15. Rc1 {[%emt 0:01:28]} Rac8 {[%emt 0:03:06]} 16. Nc5 {[%emt 0:02:06]} Bd8 {[%emt 0:01:25]} (16... Bd7 $14) 17. Qa4 {[%emt 0:03:13]} (17. Nb7 $16 Qd7 18. Nxd8 Qxd8 19. Nxc6 (19. Rxc6 Rxc6 20. Nxc6 Qd6 $16)) 17... Bc7 $11 {[%emt 0:03:53][%csl Gc7][%cal Rd6h2] [#]} 18. f4 {[%emt 0:01:48][%cal Oc5e6] Active counter play!} (18. Nxc6 $2 Qxh2#) 18... Bb6 {[%emt 0:00:37]} 19. b4 {[%emt 0:00:37]} a5 {[%emt 0:07:05]} 20. f5 {[%emt 0:09:16]} (20. Ncxe6 $14 fxe6 21. bxa5 (21. Nxc6 $2 Bxe3+ 22. Kh1 Bxc1 $19) 21... Bxd4 22. Qxd4 (22. exd4 Rxf4 23. a6 Rxf1+ 24. Rxf1 Qb8 $16)) 20... Bd7 {[%emt 0:02:38]} 21. Nxd7 {[%emt 0:01:30]} Qxd7 {[%emt 0:01:20]} 22. bxa5 {[%emt 0:01:05][%csl Oa5] White has a strong passed pawn} Ra8 {[%emt 0:05:53]} 23. a6 {[%emt 0:05:51]} (23. Qxc6 {simplifies} Qxc6 24. Rxc6 Bxa5 25. Kf2) 23... Qe7 {[%emt 0:03:44]} (23... Qe8 $1 $11 {keeps the balance.} 24. Kh1 c5) 24. Nxc6 {[%emt 0:02:28]} (24. Qxc6 $2 Qxe3+ 25. Kh1 Bxd4 $19 (25... Qxd4 $2 26. f6 $19)) (24. Rfe1 $16) 24... Bxe3+ {[%emt 0:05:00]} 25. Kh1 {[%emt 0:00:07]} Qe4 {[%emt 0:02:14]} 26. Qxe4 {[%emt 0:09:31]} dxe4 {[%emt 0:00:13]} 27. Ne7+ {[%emt 0:00:37]} Kh8 {[%emt 0:00:03]} 28. Rc6 {[%emt 0:05:35]} Bd2 {[%emt 0:01:28] ...e3 is the strong threat.} 29. Rf2 {[%emt 0:01:06]} e3 {[%emt 0:02:20]} 30. Re2 {[%emt 0:00:01]} Rfb8 {[%emt 0:05:18]} (30... Rfe8 $1 $11 31. Nd5 Red8) 31. g4 {[%emt 0:02:50] Nd5 is the strong threat.} Rb2 {[%emt 0:00:56]} 32. Nd5 {[%emt 0:03:23]} ({White should play} 32. Nc8 $16) 32... Rxa2 {[%emt 0:03:40]} 33. Nxe3 {[%emt 0:01:12]} (33. Nc7 $14 {should be considered.} Rc8 34. Kg2) 33... Ra1+ {[%emt 0:00:52]} 34. Kg2 {[%emt 0:00:57]} Bxe3 {[%emt 0:00:05]} 35. Rxe3 {[%emt 0:00:08][%mdl 4096] Endgame Threatening Rec3. KRR-KRR. White is a pawn up.} h5 {[%emt 0:00:06]} 36. g5 {[%emt 0:06:51]} R1xa6 {[%emt 0:00:34]} 37. Rc7 {[%emt 0:00:26]} Kg8 {[%emt 0:00:38]} 38. Kg3 {[%emt 0:00:57]} Ra5 {[%emt 0:00:45]} 39. Kh4 {[%emt 0:00:41]} (39. Rf3 $11) 39... Rxf5 $17 {[%emt 0:00:22]} 40. Kxh5 $2 {[%emt 0:00:11][%mdl 8192]} (40. Rc4 $17 {is a better chance.}) 40... Ra4 $2 {[%emt 0:00:24]} ({Black should try} 40... Rf4 $19 {( -> ...g6+)} 41. Rc6 Raa4 (41... g6+ $2 42. Rxg6+ fxg6+ 43. Kxg6 $19)) 41. Re8+ $14 {[%emt 0:00:41]} Kh7 {[%emt 0:00:02][%csl Gf7,Gh7][%cal Rg7g6] [#]} 42. Rxf7 $1 {[%emt 0:00:17]} Rh4+ {[%emt 0:01:30]} (42... Raa5 43. Rxf5) 43. Kxh4 {[%emt 0:00:05]} Rxf7 {[%emt 0:00:12] KR-KR. White is a pawn up.} 44. Kg4 {[%emt 0:00:55] Inhibits Rf4+.} Ra7 {[%emt 0:00:21]} 45. Kf5 {[%emt 0:00:51]} Ra5+ {[%emt 0:00:21] The position is equal.} 46. Re5 {[%emt 0:00:24]} Rxe5+ {[%emt 0:01:17]} 47. Kxe5 $11 {[%emt 0:00:06] KPP-KP. White is a pawn up.} Kg6 {[%emt 0:00:05]} 48. Kf4 {[%emt 0:01:01]} Kh5 {[%emt 0:00:02]} 49. Kf5 {[%emt 0:00:31]} Kh4 {[%emt 0:00:06]} 50. Kf4 {[%emt 0:00:30]} (50. g6 $5 Kh5 $8 51. Kf4 $11) 50... Kh5 {[%emt 0:00:19]} 51. Kf5 {[%emt 0:00:21]} Kh4 {[%emt 0:00:05]} 52. g6 {[%emt 0:00:38] White wants to mate with Ke6.} (52. Kg6 $5 Kg4 $8 53. Kxg7 Kxg5 54. Kh8 $11) 52... Kh5 {[%emt 0:00:34]} 53. h3 {[%emt 0:00:20]} Kh6 $1 {[%emt 0:00:16]} ({Worse is} 53... Kh4 54. Ke6 Kg5 55. Kf7 Kh6 56. h4 Kh5 57. Kxg7 Kxh4 58. Kf6) 54. Kg4 {[%emt 0:00:17]} Kxg6 {[%emt 0:00:01]} 55. h4 {[%emt 0:00:05]} Kh6 {[%emt 0:00:05]} 56. h5 {[%emt 0:00:06]} g6 {[%emt 0:00:09]} 57. hxg6 {[%emt 0:00:05]} Kxg6 {[%emt 0:00:02]} 58. Kf4 {Weighted Error Value: White=0.33/Black=0.26 (precise)   Loses game:     	White=1     	---        Missed win:     	---       	Black=2      Mistake:       	White=6     	Black=3      Inaccurate:     	White=3     	Black=3      OK:         	White=16    	Black=18     Best:        	White=4     	Black=9      Strong:       	---       	Black=1      Brilliant:      	White=1     	---} 1/2-1/2